Cogmind - Beta 10.2 @@@ ROGUE MODE // 2021.05.16 @ 11:38:18 Player: Zoe Result: Self-destructed Performance ------------- Evolutions (3) 1500 Regions Visited (4) 800 Robots Destroyed (31) 155 Value Destroyed (627) 627 Prototype IDs (3) 60 Alien Tech Used (0) 0 Bonus (0) 0 TOTAL SCORE: 3142 Bonus ------- None Cogmind --------- Core Integrity 284/700 Matter 295/300 Energy 100/100 System Corruption 0% Temperature Cool (0) Movement Core (200) Ox3 Location -7/Factory Parts ------- > --- POWER (2) -------- (None) > --- PROPULSION (4) --- (None) > --- UTILITY (5) ------ Medium Storage Unit Signal Interpreter Advanced Terrain Scan Processor > --- WEAPON (2) ------- Katana > --- INVENTORY (8) ---- Heat Sink Large Storage Unit Improved Melee Analysis Suite Improved Datajack Peak State ------------ > --- POWER ------------ Light Ion Engine > --- PROPULSION ------- Airjet Airjet Airjet Airjet > --- UTILITY ---------- Medium Storage Unit Improved Terrain Scanner Terrain Scan Processor Advanced Terrain Scan Processor > --- WEAPON ----------- Katana Katana > --- INVENTORY -------- Hover Unit Heat Sink Large Storage Unit Sensor Array Signal Interpreter Beam Cannon Light Assault Rifle Improved Datajack [Rating: 29] Favorites ----------- Power Light Ion Engine Engine Light Ion Engine Power Core Light Nuclear Core Propulsion Aluminum Leg Leg Aluminum Leg Hover Unit Airjet Utility High-capacity Storage Unit Device Improved Terrain Scanner Storage High-capacity Storage Unit Processor Terrain Scan Processor Weapon Beam Cannon Energy Gun Medium Laser Energy Cannon Beam Cannon Ballistic Gun Assault Rifle Ballistic Cannon Light Cannon Slashing Weapon Katana Special Melee Weapon Improved Datajack Build | -11 -10 -9 -8 -7 ------- Run | Scr Mat Mat Mat Fac Slots Evolved 6 | . . 2 2 2 Power 1 | . . . . 1 Propulsion 2 | . . 1 1 . Utility 3 | . . 1 1 1 Weapon . | . . . . . Parts Attached 55 | 8 13 20 8 6 Power 7 | 1 4 1 . 1 Engine 5 | 1 3 1 . . Core 2 | . 1 . . 1 Reactor . | . . . . . Propulsion 14 | 2 1 6 4 1 Treads . | . . . . . Leg 9 | 2 1 6 . . Wheel . | . . . . . Hover 5 | . . . 4 1 Flight . | . . . . . Utility 17 | 2 5 6 1 3 Device 7 | . 1 5 . 1 Storage 6 | 2 3 . 1 . Processor 4 | . 1 1 . 2 Hackware . | . . . . . Protection . | . . . . . Artifact . | . . . . . Weapon 17 | 3 3 7 3 1 Energy Gun 1 | 1 . . . . Energy Cannon 3 | . 1 2 . . Ballistic Gun 5 | 2 1 2 . . Ballistic Cannon 3 | . 1 2 . . Launcher . | . . . . . Special Weapon . | . . . . . Impact Weapon . | . . . . . Slashing Weapon 4 | . . 1 2 1 Piercing Weapon . | . . . . . Special Melee Weapon 1 | . . . 1 . Unidentified Prototypes 1 | . . . . 1 Parts Lost 16 | . 1 5 . 10 Power 3 | . . 1 . 2 Propulsion 8 | . . 3 . 5 Utility 2 | . . . . 2 Weapon 3 | . 1 1 . 1 Highest Loss Streak 8 | . 1 2 . 8 Average Slot Usage (%) 88 | . 93 92 90 65 Engine 5 | . 12 1 9 3 Core 5 | . 1 9 . 2 Leg 21 | . 28 28 . . Hover 7 | . . . 36 21 Device 5 | . . 8 9 7 Storage 13 | . 21 11 9 7 Processor 6 | . . 11 9 8 Energy Cannon 5 | . 4 10 . . Ballistic Gun 6 | . 11 7 . . Ballistic Cannon 4 | . 9 4 . . Slashing Weapon 3 | . . . 15 13 Naked Turns . | . . . . . Heaviest Build 72 | 15 72 47 16 21 Greatest Support 36 | 20 20 30 36 36 Greatest Overweight (x) 6 | . 3 3 . 6 Average Overweight (x) . | . . 1 . . Largest Inventory Capacity 20 | 8 20 12 12 8 Average Capacity 10 | 6 10 12 8 8 Most Carried 12 | 4 12 12 12 8 Average Carried 8 | 2 7 11 7 6 Final Capacity 12 | 8 12 12 8 8 Final Carried 12 | 4 12 11 8 4 Class Distribution -------------------- 62% | Mutant 35% | Scavenger-Mutant Dominant Class ---------------- Mutant | -10/Materials Scavenger-Mutant | -9/Materials Mutant | -8/Materials Mutant | -7/Factory Resources | -11 -10 -9 -8 -7 ----------- Run | Scr Mat Mat Mat Fac Matter Collected 1132 | 310 358 369 39 56 Remotely . | . . . . . Salvage Created 966 | 147 346 343 39 91 Parts 57 | 10 30 13 2 2 Haulers Intercepted 2 | . 1 1 . . Recyclers Shooed 2 | 1 . 1 . . Parts Field Recycled . | . . . . . Retrieved Matter . | . . . . . Parts Self-Destructed . | . . . . . Prevented . | . . . . . Kills | -11 -10 -9 -8 -7 ------- Run | Scr Mat Mat Mat Fac Combat Hostiles Destroyed 17 | . 10 7 . . Guns 2 | . 2 . . . Cannons 15 | . 8 7 . . Classes Destroyed 11 | 2 6 2 1 . Builder 2 | . 2 . . . Tunneler 3 | 3 . . . . Hauler 2 | . 1 1 . . Recycler 3 | 1 . 1 . 1 Mechanic 1 | . 1 . . . Operator 2 | . . . 2 . Watcher 1 | . 1 . . . Swarmer 6 | . 6 . . . Grunt 8 | . 4 4 . . Duelist 1 | . . 1 . . Sentry 2 | . . 2 . . Best Kill Streak 4 | 2 3 4 2 1 Combat Bots Only 4 | . 3 4 . . Max Kills in Single Turn 2 | 1 2 1 1 1 Gunslinging . | . . . . . Exploded . | . . . . . Melee . | . . . . . Uniques/NPCs Destroyed . | . . . . . Combat | -11 -10 -9 -8 -7 -------- Run | Scr Mat Mat Mat Fac Damage Taken 2053 | . 360 661 50 982 Core 630 | . 30 184 . 416 Absorbed by Shields . | . . . . . Core Remaining (%) 85 | 100 88 54 100 . Volleys Fired 90 | 10 44 36 . . Largest 2 | 2 2 2 . . Hottest 104 | 70 85 104 . . Shots Fired 177 | 20 87 70 . . Gun 77 | 20 43 14 . . Cannon 100 | . 44 56 . . Launcher . | . . . . . Special . | . . . . . Kinetic 120 | 10 66 44 . . Thermal 57 | 10 21 26 . . Explosive . | . . . . . Electromagnetic . | . . . . . Robot Hit Streak 10 | 3 4 10 . . Robot Miss Streak 5 | 3 4 5 . . Penetration Max . | . . . . . Secondary Targets . | . . . . . Shots Hit Robots 132 | 11 47 59 6 9 Core Hits 51 | 5 19 24 2 1 Critical Hits 2 | . . 1 . 1 Critical Kills . | . . . . . Critical Parts Destroyed 2 | . . 1 . 1 Melee Attacks 46 | . . 2 21 23 Impact . | . . . . . Slashing 45 | . . 2 20 23 Piercing . | . . . . . Sneak Attacks 4 | . . . 2 2 Combat Hostiles . | . . . . . Follow-up Attacks 4 | . . . 1 3 Damage Inflicted 2395 | 137 669 888 276 425 Guns 528 | 137 304 87 . . Cannons 1166 | . 365 801 . . Explosions . | . . . . . Melee 701 | . . . 276 425 Ramming . | . . . . . Kinetic 1070 | 76 494 500 . . Thermal 624 | 61 175 388 . . Explosive . | . . . . . Electromagnetic . | . . . . . Impact . | . . . . . Slashing 701 | . . . 276 425 Piercing . | . . . . . Highest Corruption 1 | . 1 . . . Average Corruption 1 | . 1 . . . Corruption Purged . | . . . . . Effects 4 | . 4 . . . Message Errors 1 | . 1 . . . Energy Discharges 1 | . 1 . . . Data Loss (minor) 1 | . 1 . . . Targeting Errors 1 | . 1 . . . Overload Shots . | . . . . . Overflow Damage 92 | . . 7 23 62 Projectiles 7 | . . 7 . . Explosions . | . . . . . Melee 85 | . . . 23 62 Knockbacks 14 | . 3 11 . . Impact . | . . . . . Kinetic 13 | . 3 10 . . Secondary 1 | . . 1 . . Self-Inflicted Damage . | . . . . . Shots . | . . . . . Rammed . | . . . . . Targets Rammed . | . . . . . Kicked . | . . . . . Crushed . | . . . . . Highest Temperature 339 | 27 144 339 . 10 Average Temperature 80 | 12 46 120 . 10 Received Heat Transfer 660 | . 75 201 9 375 Effects 2 | . . 2 . . Interference 2 | . . 2 . . Siege Activations . | . . . . . Robots Corrupted . | . . . . . Combat Hostiles . | . . . . . Parts Fried 1 | . 1 . . . Impact Corruptions . | . . . . . Robots Melted . | . . . . . Combat Hostiles . | . . . . . Parts Melted 1 | . 1 . . . Heat Transferred 1443 | 185 444 814 . . Parts Sabotaged . | . . . . . Parts Stolen . | . . . . . Parts Stripped . | . . . . . Power Chain Reactions . | . . . . . Missiles Intercepted . | . . . . . Alert | -11 -10 -9 -8 -7 ------- Run | Scr Mat Mat Mat Fac Peak Influence 200 | 20 200 182 107 87 Initial 48 | . 13 42 14 48 Average 80 | 7 104 90 60 50 Maximum Alert Level 1 | . 1 . . . Low Security (%) 95 | 100 84 100 100 100 Level 1 4 | . 15 . . . Level 2 . | . . . . . Level 3 . | . . . . . Level 4 . | . . . . . Level 5 . | . . . . . High Security . | . . . . . Max Security . | . . . . . Squads Dispatched 5 | . . 1 3 1 Investigation . | . . . . . Extermination . | . . . . . Reinforcement 5 | . . 1 3 1 Assault . | . . . . . Garrison . | . . . . . Intercept . | . . . . . Construction Impeded . | . . . . . Haulers Reinforced . | . . . . . Stealth | -11 -10 -9 -8 -7 --------- Run | Scr Mat Mat Mat Fac Distress Signals 2 | . 1 . 1 . Communications Jammed . | . . . . . Distress Signals . | . . . . . Times Spotted 48 | . 18 14 9 7 Peak Tracking Total 5 | . 4 5 4 4 Tactical Retreats 4 | . 1 2 1 . Traps | -11 -10 -9 -8 -7 ------- Run | Scr Mat Mat Mat Fac Traps Triggered 4 | . 2 2 . . Indirectly . | . . . . . Trap Hack Attempts . | . . . . . Triggered . | . . . . . Disarmed . | . . . . . Reprogrammed . | . . . . . Reused . | . . . . . Traps Extracted . | . . . . . Installed . | . . . . . Triggered . | . . . . . Machines | -11 -10 -9 -8 -7 ---------- Run | Scr Mat Mat Mat Fac Machines Disabled 1 | . 1 . . . Max in Single Turn 1 | . 1 . . . Machines Sabotaged . | . . . . . Garrisons Compromised . | . . . . . Overloaded Fab Kills . | . . . . . Fab Network Shutdowns . | . . . . . Hacking | -11 -10 -9 -8 -7 --------- Run | Scr Mat Mat Mat Fac Machines Accessed 6 | . 3 2 1 . Terminals 6 | . 3 2 1 . Fabricators . | . . . . . Repair Stations . | . . . . . Recycling Units . | . . . . . Scanalyzers . | . . . . . Garrison Access . | . . . . . Total Hacks 14 | . 8 5 1 . Successful 6 | . 3 3 . . Failed 8 | . 5 2 1 . Catastrophic 2 | . 1 . 1 . Database Lockouts . | . . . . . Manual 10 | . 5 4 1 . Terminals 14 | . 8 5 1 . Fabricators . | . . . . . Repair Stations . | . . . . . Recycling Units . | . . . . . Scanalyzers . | . . . . . Garrison Access . | . . . . . Terminal Hacks 4 | . 3 1 . . Record 1 | . . 1 . . Prototype ID Bank 1 | . 1 . . . Branch Access Points 1 | . 1 . . . Dispatch Records 1 | . 1 . . . Fabricator Hacks . | . . . . . Repair Station Hacks . | . . . . . Recycling Unit Hacks . | . . . . . Scanalyzer . | . . . . . Garrison Access Hacks . | . . . . . Unauthorized Hacks 2 | . . 2 . . Terminals 2 | . . 2 . . Assimilate 1 | . . 1 . . Operators 1 | . . 1 . . Fabricators . | . . . . . Repair Stations . | . . . . . Recycling Units . | . . . . . Scanalyzers . | . . . . . Garrison Access . | . . . . . Data Cores Recovered 1 | . . . 1 . Used . | . . . . . Hacking Detections 6 | . 3 2 1 . Full Trace Events . | . . . . . Feedback Events . | . . . . . Feedback Blocked . | . . . . . Robot Schematics Acquired . | . . . . . Robots Built . | . . . . . Matter . | . . . . . Time . | . . . . . Total Robot Build Rating . | . . . . . Part Schematics Acquired . | . . . . . Parts Built . | . . . . . Matter . | . . . . . Time . | . . . . . Total Part Build Rating . | . . . . . Parts Repaired . | . . . . . Time . | . . . . . Parts Recycled . | . . . . . Recycled Matter . | . . . . . Retrieved Matter . | . . . . . Retrieved Components . | . . . . . Parts Scanalyzed . | . . . . . Part Schematics Acquired . | . . . . . Parts Damaged . | . . . . . Bothacking | -11 -10 -9 -8 -7 ------------ Run | Scr Mat Mat Mat Fac Used RIF Installer . | . . . . . Robots Hacked 1 | . . . 1 . Non-combat 1 | . . . 1 . Combat . | . . . . . Robot Hacks Applied 1 | . . . 1 . no_distress 1 | . . . 1 . Relay Couplers Released . | . . . . . Robots Rewired . | . . . . . Allies Hacked . | . . . . . Hacks Repelled . | . . . . . Allies | -11 -10 -9 -8 -7 -------- Run | Scr Mat Mat Mat Fac Total Allies . | . . . . . Largest Group . | . . . . . Highest-Rated Group . | . . . . . Highest-Rated Ally . | . . . . . Total Orders . | . . . . . Ally Attacks . | . . . . . Total Damage . | . . . . . Kills . | . . . . . Allies Corrupted . | . . . . . Allies Melted . | . . . . . Intel | -11 -10 -9 -8 -7 ------- Run | Scr Mat Mat Mat Fac Robot Analysis Total . | . . . . . Derelict Logs Recovered . | . . . . . Drone Launches . | . . . . . Drone Recoveries . | . . . . . Exploration | -11 -10 -9 -8 -7 ------------- Run | Scr Mat Mat Mat Fac Turns Passed 2148 | 155 648 830 212 303 Spaces Moved 1118 | 94 329 328 153 214 Core 17 | 4 . . . 13 Treads . | . . . . . Legs 747 | 90 329 328 . . Wheels . | . . . . . Hover 354 | . . . 153 201 Flight . | . . . . . Fastest Speed 48 | 50 120 150 48 48 Average Speed 120 | 117 141 162 48 74 Slowest Speed 350 | 120 210 210 48 350 Overloaded Moves . | . . . . . Propulsion Burnouts . | . . . . . Robots Hopped . | . . . . . Cave-ins Triggered . | . . . . . Exploration Rate (%) 21 | 5 52 24 19 8 Regions Visited 4 Branch Regions . Pre-discovered Areas . | . . . . . Known Exits Taken . | . . . . . Unknown Exits Taken 4 | 1 1 1 1 . Scrap Searched . | . . . . . Spaces Dug 22 | . . 2 11 9 Terrain Destroyed 22 | . . 2 11 9 Melee 22 | . . 2 11 9 Projectile . | . . . . . AOE . | . . . . . Terrain Rammed . | . . . . . Walls Destroyed . | . . . . . Machines Disabled . | . . . . . Actions | -11 -10 -9 -8 -7 --------- Run | Scr Mat Mat Mat Fac Total 1688 | 115 427 553 266 327 Wait 330 | . 18 147 81 84 Move 1114 | 93 328 327 152 214 Hop . | . . . . . Pick Up 27 | 4 11 9 2 1 Fast Attach 22 | 7 2 11 . 2 Attach 15 | . 2 6 4 3 Detach 11 | . 4 4 2 1 Swap 18 | 1 9 3 4 1 Drop 23 | . 9 8 4 2 Fire 90 | 10 44 36 . . Melee 38 | . . 2 17 19 Ram . | . . . . . Kick . | . . . . . Crush . | . . . . . Escape Stasis . | . . . . . Rewire . | . . . . . Trap . | . . . . . Miscellaneous . | . . . . . Route ------- -11/Scrapyard -10/Materials (discovered 3 exits: *Mat / Min x2) -9/Materials -8/Materials -7/Factory History --------- Turn | Location | Event 3 | -11/Scrapyard | Discovered new exit (range 15) 156 | -11/Scrapyard | Entered Materials 312 | -10/Materials | Build established: Mutant 660 | -10/Materials | Discovered new exit (range 11) 681 | -10/Materials | Identified exit to Mines 804 | -10/Materials | Entered another Materials area 804 | -9/Materials | Evolved 2 slots: Propulsion x1, Utility x1 1111 | -9/Materials | Build established: Scavenger-Mutant 1539 | -9/Materials | Discovered new exit (range 12) 1634 | -9/Materials | Entered another Materials area 1634 | -8/Materials | Evolved 2 slots: Propulsion x1, Utility x1 1832 | -8/Materials | Discovered new exit (range 10) 1846 | -8/Materials | Entered Factory 1846 | -7/Factory | Evolved 2 slots: Power x1, Utility x1 1953 | -7/Factory | Build established: Mutant 2142 | -7/Factory | Core integrity fell below 50% 2149 | -7/Factory | Self-destructed Last Messages --------------- 01994_ Katana follow-up attack on S-27 Virus. 01997_ Fusion Modulator explodes. 01997_ S-27 Virus destroyed. 01997_ Fusion Modulator explodes. 01997_ S-27 Virus destroyed. 01997_ Acquired 5 matter. 01998_ Airjet destroyed. 02053_ Acquired Prototype Power Core. 02053_ Identified Enh. Nuclear Core. 02055_ Airjet destroyed. 02074_ Katana follow-up attack on G-47 Trooper. 02076_ Katana destroyed. 02077_ G-47 Trooper suffers critical hit. 02077_ Destroyed Lgt. Nuclear Core. 02094_ M-13 Machinist fits Backup Power I on G-47 Trooper. 02095_ Airjet destroyed. 02095_ Hover Unit destroyed. 02120_ Sensor Array destroyed. 02122_ Imp. Terrain Scanner destroyed. 02146_ Enh. Nuclear Core destroyed. Map ----- +----------------------------------------------------+ | ????###?#?##?#####?#?# """"""" """"""" ###? | | ????##?#####?##?#?#?## ##?# !!! | | ?#??#?##?########?###"########+###""####### !!= | | ##??#####?###########"###### + !!= ? | | ?#####?##?#?### # """" ""##"#??? | | ?#?###?#??##### """"""""" # "% #?#? | | ?#?##?####?##?# + " #### | | #?######?###### """"""""" # " #### | | ??############# # " #### | | ?#?#####?######"############ #### | | ##??########## #### | | ###### " #?## | | ?##### """ # " = #??# | | ?#?### """ # "= #### | | ?##??# """ # # #### | | ###?## # ######### # ##?# | | ??##?# """ # ######### # ##?# | | ?? #| """ # ######### ####+############ | | # """ # ######### #### ####### | | + + # * + #### #?#####= | | """ # """ # # # ####+####### | | """ ?# """ # # # # + + | | """? # """ # # """ # ??# [ """ ##" | | #] # # """ # # ] """ ### | | ?"" # """ # # """ # ? ?# """ #?# | | """? # """ # # g@ #?? # ### | | ??" # """ # # """ # ? # """ ### | | ? ? # # # """ Y ? + """ ### | | ?? ??######### # """ # ?# """ ### | | ? ?######?## # g # ? # #?# | | ? ???###?##### #;####### ####+############ | | ? ? !% | | ? ? = | | ???? | | ???? | | ????? | | ?????#####+### ############+################## | | ??????# ????# #?#????#? ???? ????## | | ???????? ? ?# # ????????? ??#????# | | ??????? ? ? # # "??? ?????????????## """""" | | ????????? ?# +???""???""" ????#??#?# | | ???????? ? ?# #??"?? ???????? ????## """""" | | ????????? ? # #? ? ? #??? ? ???????# | | ????????? ???# ? ? ?? #?"????? ??#??######### | | ???????????? # ?? ?? ??????? ??????#??#?????? | | ??????????????? ? ? ?? ??? ????????????#?????#? | | ??????????????? ?????"?"???????????#??##????###? | | ????????????????????????????????????#????###??##?? | | ???????????????????????????????????????#????#????? | | ????????????????????????????????#?????????##?##?## | +----------------------------------------------------+ Best States ------------- Heat Dissipation 38 Energy Generation 17 Energy Capacity 300 Matter Stores 300 Matter Capacity 300 Sight Range 16 Robot Scan Range 10 Terrain Scan Range 16 Terrain Scan Density 285 Evasion (%) 55 Item Schematics ----------------- None Robot Schematics ------------------ None Fabricated ------------ Nothing Alien Tech Used ----------------- None Achievements -------------- Omniscient Cartographer Challenges ------------ None Game ------ Seed ChainDiametricThrower Manual? 0 Play Time 00:40:46 Cumulative 21.6 hours Start 2021.05.16 @ 10:41:23 End 2021.05.16 @ 11:38:18 Sessions 1 Manual Loads 0 Difficulty Rogue Special Mode None Game No. 12 Rogue 12 Adventurer 0 Explorer 0 Win Type - Total 0 Types 0/0/0/0/0/0/0/0/0 Lore% 20 Gallery% 26 Achievement% 29 Wizard Run 0 Options --------- ASCII 0 Keyboard 1 Movement Numpad Keybinds 0 Fullscreen 1 Font 18/SmallcapsGlow Map View 76x50 Tactical HUD 1 Map Filters NONE Filters NONE Steam 1 RUN: 8c1e1ae4-5e56-4ed8-8593-d7b6f9bd7f6d